bitfinex/quotes_SOLUSD_20251002
["timestamp","ask_amount","ask_price","bid_price","bid_amount"]
[1759394032497,132.9,224.14,224.12,35.44189541]
[1759394033219,132.9,224.14,224.13,0.71]
[1759394033424,132.9,224.14,224.13,18.5678427]
[1759394035223,0.1,224.18,224.16,20.8]
[1759394035521,3.3406444,224.17,224.16,20.8]
[1759394035698,3.3406444,224.17,224.16,51.76]
[1759394037823,3.3406444,224.17,224.16,56.22109921]
[1759394038197,0.1,224.18,224.16,56.22109921]
[1759394040003,0.1,224.18,224.16,58.0071723]
[1759394040303,0.1,224.18,224.16,56.22109921]
[1759394042932,0.1,224.18,224.16,58.0071723]
[1759394043116,0.1,224.18,224.16,58.6971723]
[1759394043315,0.1,224.18,224.16,58.0071723]
[1759394043525,0.1,224.18,224.16,56.22109921]
[1759394044729,0.67,224.17,224.13,20.8]
[1759394045028,0.67,224.16,224.15,20.8]
[1759394045418,4.00694102,224.16,224.15,51.76]
[1759394046216,0.67,224.16,224.15,51.76]
[1759394047211,4.00704628,224.16,224.15,51.76]
[1759394050349,4.00704628,224.16,224.15,20.8]
[1759394050550,4.00704628,224.16,224.15,51.76]
[1759394053549,4.00704628,224.16,224.15,20.8]
[1759394053754,4.00704628,224.16,224.13,1.78631238]
[1759394054061,4.00704628,224.16,224.14,30.96]
[1759394054062,3.33724101,224.15,224.14,30.96]
[1759394054653,0.77,224.18,224.14,30.96]
[1759394054833,4.00713417,224.17,224.14,30.96]
[1759394055033,4.00713417,224.16,224.14,30.96]
[1759394055232,0.67,224.16,224.14,30.96]
[1759394057059,4.00714882,224.15,224.11,20.8]
[1759394057358,4.00714882,224.14,224.12,30.96]
[1759394057558,3.33714882,224.13,224.12,30.96]
[1759394059150,3.33714882,224.13,224.12,35.42189541]
[1759394061160,3.33714882,224.13,224.12,30.96]
[1759394061959,4.02714882,224.13,224.12,30.96]
[1759394062348,3.33714882,224.13,224.12,30.96]
[1759394062550,4.02714882,224.13,224.12,30.96]
[1759394062856,4.02714882,224.13,224.12,51.76]
[1759394063463,4.02714882,224.13,224.12,30.96]
[1759394063832,4.02714882,224.13,224.08,128.39973647]
[1759394064037,0.69,224.12,224.09,30.96]
[1759394064258,0.69,224.11,224.09,30.96]
[1759394064572,0.69,224.11,224.09,35.42247082]
[1759394064967,0.69,224.13,224.09,35.42247082]
[1759394065149,0.69,224.13,224.09,36.10247082]
[1759394066462,0.69,224.12,224.09,35.42247082]
[1759394066668,0.69,224.13,224.09,36.10247082]
[1759394067031,15.33757442,224.16,224.09,36.10247082]
[1759394067237,0.69,224.13,224.09,36.10247082]
[1759394067540,0.69,224.12,224.09,36.10247082]
[1759394069934,0.69,224.14,224.09,36.10247082]
[1759394070264,3.33612015,224.13,224.09,36.10247082]
[1759394070562,0.69,224.13,224.09,36.10247082]
[1759394071453,0.69,224.13,224.1,13.39973647]
[1759394071759,0.69,224.13,224.11,30.96]
[1759394072541,0.69,224.13,224.12,10.87647521]
[1759394072768,4.02562857,224.13,224.12,10.87647521]
[1759394074654,19.36380011,224.13,224.12,10.87647521]
[1759394075151,10.87647521,224.12,224.09,0.68]
[1759394075369,3.33562857,224.11,224.09,31.64]
[1759394075560,3.33562857,224.1,224.09,31.64]
[1759394080345,3.33248408,224.1,224.09,31.64]
[1759394082167,7.79477769,224.1,224.09,31.64]
[1759394082370,7.79477769,224.1,224.09,0.68]
[1759394082947,7.79477769,224.1,224.09,31.64]
[1759394084862,7.79477769,224.1,224.09,30.96]
[1759394085370,7.79477769,224.1,224.08,115.0]
[1759394085574,10.87647521,224.1,224.08,145.96]
[1759394086170,3.33180092,224.09,224.08,115.0]
[1759394086756,10.87647521,224.1,224.08,115.0]
[1759394088172,15.33878784,224.1,224.08,115.0]
[1759394088557,3.33280573,224.09,224.08,115.0]
[1759394091187,3.33280573,224.09,224.08,145.96]
[1759394094291,7.79529847,224.09,224.08,145.96]
[1759394094977,3.33280573,224.09,224.08,145.96]
[1759394095389,10.87647521,224.16,224.08,151.08269189]
[1759394095574,3.33296136,224.15,224.09,0.66]
[1759394095775,3.33296136,224.14,224.1,30.96]
[1759394095975,0.77,224.18,224.1,30.96]
[1759394095976,3.33296136,224.13,224.11,0.66]
[1759394096286,4.46098246,224.17,224.12,35.42189541]
[1759394096472,3.3333982,224.16,224.13,0.66]
[1759394096673,3.3333982,224.15,224.14,30.96]
[1759394099285,3.3333982,224.15,224.12,5.13098246]
[1759394099494,3.3333982,224.14,224.13,30.96]
[1759394099807,14.87987341,224.14,224.09,0.66]
[1759394100085,3.3333982,224.13,224.1,31.62]
[1759394100288,3.3333982,224.12,224.09,3.3333982]
[1759394100490,10.87647521,224.1,224.08,115.0]
[1759394100664,4.0033982,224.09,224.08,115.0]
[1759394100878,3.3333982,224.09,224.08,115.0]
[1759394101283,7.79589094,224.09,224.08,115.0]
[1759394102605,3.3333982,224.09,224.08,115.0]
[1759394103195,7.79589094,224.09,224.08,115.0]
[1759394103807,19.34236615,224.09,224.08,115.0]
[1759394104103,19.34531725,224.09,224.08,115.0]
[1759394104804,20.84596282,224.09,224.08,115.0]
[1759394105105,19.34531725,224.09,224.08,115.0]
[1759394105902,20.84596282,224.09,224.08,115.0]
[1759394106604,34.25168706,224.09,224.08,115.0]
[1759394109491,34.25168706,224.09,224.01,30.96]
[1759394109492,10.87647521,224.05,224.01,30.96]
[1759394109816,10.87647521,224.03,224.0,30.96]
[1759394109995,10.87647521,224.03,224.0,31.62]
[1759394110380,10.87647521,224.03,224.0,30.96]
[1759394110585,10.87647521,224.03,224.01,0.66]
[1759394110784,15.34029541,224.03,224.01,0.66]
[1759394111685,15.34029541,224.03,224.0,30.98]
[1759394111881,15.34029541,224.03,224.0,31.64]
[1759394112710,15.34029541,224.03,224.01,0.66]
[1759394113188,15.34029541,224.03,224.0,30.98]
[1759394113378,15.34029541,224.03,224.0,0.66]
[1759394113583,15.34029541,224.03,224.0,31.64]
[1759394114798,3.33237526,224.02,224.0,31.64]
[1759394114995,28.77647521,224.01,223.97,0.66]
[1759394115312,28.77647521,224.01,223.9,11.3655901]
[1759394115313,10.87647521,223.99,223.96,30.98]
[1759394115487,10.87647521,223.99,223.96,31.64]
[1759394115910,10.87647521,223.97,223.94,0.66]
[1759394116112,10.87647521,223.97,223.94,31.64]
[1759394116314,10.87647521,223.97,223.95,0.66]
[1759394116501,4.46508305,223.96,223.94,30.98]
[1759394116816,4.46508305,223.96,223.94,0.66]
[1759394118813,5.13508305,223.96,223.92,0.66]
[1759394119110,0.67,223.95,223.9,11.07647521]
[1759394119312,0.67,223.95,223.91,31.64]
[1759394119487,0.67,223.94,223.9,11.73647521]
[1759394119687,0.67,223.94,223.9,42.71647521]
[1759394119884,0.67,223.94,223.91,0.66]
[1759394119885,10.87647521,223.93,223.91,0.66]
[1759394120113,10.87647521,223.93,223.92,0.66]
[1759394120321,10.87647521,223.93,223.91,0.66]
[1759394121002,4.46508305,223.96,223.92,0.66]
[1759394121317,10.87647521,223.95,223.93,0.66]
[1759394121691,10.87647521,223.95,223.91,0.66]
[1759394121906,10.87647521,223.95,223.92,0.66]
[1759394124004,10.87647521,223.94,223.92,0.66]
[1759394124998,10.87647521,223.95,223.92,0.66]
[1759394125391,10.87647521,223.96,223.93,0.65]
[1759394125601,17.9,223.97,223.93,31.63]
[1759394125809,17.9,223.97,223.94,0.65]
[1759394126296,17.9,223.97,223.95,0.65]
[1759394126508,17.9,223.97,223.96,0.65]
[1759394127892,17.9,223.97,223.96,30.98]
[1759394128519,17.9,223.97,223.94,14.05931947]
[1759394128696,17.9,223.97,223.95,31.63]
[1759394128902,17.9,223.97,223.95,30.98]
[1759394129807,17.9,223.97,223.94,44.39051831]
[1759394129995,0.72,223.96,223.91,0.65]
[1759394130196,0.72,223.96,223.9,0.2]
[1759394130197,10.87647521,223.95,223.9,0.2]
[1759394130393,10.87647521,223.93,223.9,13.61291663]
[1759394130618,10.87647521,223.93,223.9,0.85]
[1759394131212,11.59647521,223.93,223.9,0.2]
[1759394131412,10.87647521,223.93,223.9,0.2]
[1759394132022,11.59647521,223.93,223.9,0.2]
[1759394132502,10.87647521,223.93,223.91,0.65]
[1759394132903,10.87647521,223.93,223.9,0.2]
[1759394134034,10.87647521,223.91,223.9,0.2]
[1759394134405,0.72,223.91,223.9,0.2]
[1759394135326,5.18608012,223.91,223.9,0.2]
[1759394135944,16.06255533,223.91,223.9,0.2]
[1759394139614,15.34255533,223.91,223.9,0.2]
[1759394140315,16.06255533,223.91,223.9,0.2]
[1759394141036,15.34255533,223.91,223.9,0.2]
[1759394141243,10.87647521,223.91,223.9,0.2]
[1759394141615,15.34255533,223.91,223.9,0.2]
[1759394142734,10.87647521,223.91,223.9,0.2]
[1759394143237,15.34255533,223.91,223.9,0.2]
[1759394143443,132.9,223.94,223.9,5.31625049]
[1759394143620,132.9,223.94,223.91,0.65]
[1759394144339,132.9,223.94,223.92,0.65]
[1759394144533,132.9,223.94,223.93,0.65]
[1759394145226,132.9,223.94,223.93,5.11568123]
[1759394145829,11.21228439,223.98,223.93,5.11568123]
[1759394146032,11.21228439,223.98,223.94,0.65]
[1759394146242,11.21228439,223.98,223.95,0.65]
[1759394147337,11.21228439,223.98,223.96,0.65]
[1759394147525,11.21228439,223.98,223.96,31.67]
[1759394147846,132.9,224.03,223.97,0.65]
[1759394148140,11.1574163,224.07,223.97,0.65]
[1759394148141,10.87647521,224.07,223.99,20.8]
[1759394148444,3.3210219,224.06,224.0,0.65]
[1759394148630,3.3210219,224.05,224.01,31.04]
[1759394148824,3.3210219,224.04,224.01,31.69]
[1759394149134,10.87647521,224.06,224.03,4.46368789]
[1759394149336,3.32202271,224.05,224.01,31.04]
[1759394149540,3.32202271,224.04,224.03,0.65]
[1759394150347,3.32202271,224.04,224.03,5.11368789]
[1759394150523,14.19849792,224.08,224.03,5.11368789]
[1759394150840,3.32202271,224.07,224.03,5.11368789]
[1759394151016,10.87647521,224.09,224.04,0.65]
[1759394151220,3.32288524,224.08,224.04,0.65]
[1759394151550,11.09615228,224.1,224.04,0.65]
[1759394151732,15.3383834,224.12,224.05,0.65]
[1759394151733,3.32253523,224.09,224.05,0.65]
[1759394151916,10.87647521,224.1,224.06,31.08]
[1759394152117,3.32262966,224.09,224.06,31.73]
[1759394152446,10.87647521,224.1,224.06,31.73]
[1759394152645,3.32214389,224.09,224.06,31.73]
[1759394152822,10.87647521,224.1,224.06,31.73]
[1759394153021,3.32214389,224.09,224.06,31.73]
[1759394153223,10.87647521,224.1,224.06,31.73]
[1759394153422,3.32159965,224.09,224.06,31.73]
[1759394153625,10.87647521,224.07,223.99,0.65]
[1759394153943,3.32163808,224.06,224.0,41.95647521]
[1759394154135,10.87647521,224.08,224.01,0.71]
[1759394154451,3.32193147,224.07,224.01,0.71]
[1759394154742,0.72,224.09,224.01,0.71]
[1759394154951,3.32172589,224.08,224.01,0.71]
[1759394155119,3.32172589,224.07,224.02,4.46388715]
[1759394155318,10.87647521,224.08,224.03,0.71]
[1759394155518,3.32160576,224.07,224.03,0.71]
[1759394155718,11.59647521,224.08,224.03,0.71]
[1759394155941,3.32155656,224.07,224.03,0.71]
[1759394156123,11.59647521,224.08,224.03,0.71]
[1759394156325,3.32155656,224.07,224.04,4.46348866]
[1759394156634,11.59647521,224.08,224.05,31.08]
[1759394156831,3.32134609,224.07,224.05,31.08]
[1759394157168,11.59647521,224.08,224.05,31.08]
[1759394157536,0.72,224.08,224.05,31.08]
[1759394157740,10.87647521,224.12,224.05,31.08]
[1759394157950,10.87647521,224.12,224.05,35.54326701]
[1759394157951,10.87647521,224.09,224.05,35.54326701]
[1759394158121,4.04109583,224.08,224.05,35.54326701]
[1759394158322,4.04109649,224.08,224.05,35.54326701]
[1759394158626,0.72,224.08,224.05,35.54326701]
[1759394158834,3.32109649,224.08,224.05,35.54326701]
[1759394159232,10.87647521,224.09,224.06,0.71]
[1759394159442,4.46215532,224.11,224.05,35.54326701]
[1759394159621,11.59647521,224.09,224.05,35.54326701]
[1759394160448,10.87647521,224.08,224.03,10.87647521]
[1759394160751,4.04061993,224.07,224.04,31.1]
[1759394160918,11.59647521,224.07,224.04,31.1]
[1759394161720,0.72,224.06,224.04,31.1]
[1759394163037,10.87647521,224.07,224.04,31.1]
[1759394163348,11.59647521,224.07,224.04,31.1]
[1759394165050,11.59647521,224.07,224.02,4.46387711]
[1759394165251,16.05938317,224.07,224.03,31.08]
[1759394165438,0.72,224.06,224.03,31.08]
[1759394166245,15.33938317,224.07,224.04,31.08]
[1759394166552,16.05938317,224.07,224.04,31.08]
[1759394167849,15.33938317,224.07,224.04,31.08]
[1759394168056,0.72,224.06,224.04,31.08]
[1759394168353,16.05938317,224.07,224.04,31.08]
[1759394169053,5.18310988,224.06,224.04,31.08]
[1759394169253,15.33937144,224.07,224.04,31.08]
[1759394169466,10.87647521,224.05,224.04,31.08]
[1759394169824,10.87647521,224.05,224.04,31.06]
[1759394174761,10.87647521,224.06,224.04,31.06]
[1759394175151,11.59647521,224.06,224.04,31.06]
[1759394175466,15.33962028,224.06,224.0,31.67647521]
[1759394175675,0.72,224.05,223.98,21.51]
[1759394175851,0.72,224.05,223.99,31.75]
[1759394176158,15.33962028,224.06,223.99,31.75]
[1759394176375,10.87647521,224.07,224.0,14.11452626]
[1759394176538,10.87647521,224.07,224.01,0.71]
[1759394176734,10.87647521,224.07,224.02,35.52388715]
[1759394176969,10.87647521,224.07,224.03,0.71]
[1759394177635,11.59647521,224.07,224.03,0.71]
[1759394178970,15.33940706,224.07,224.02,31.06]
[1759394179177,15.33940706,224.07,224.0,17.86868138]
[1759394179178,0.72,224.06,224.0,13.40452626]
[1759394179338,10.87647521,224.04,224.01,31.08]
[1759394179540,0.72,224.03,224.01,31.08]
[1759394181369,10.87647521,224.04,224.01,31.08]
[1759394181569,11.59647521,224.04,224.01,31.08]
[1759394181961,132.9,224.06,224.02,0.69]
[1759394182464,132.9,224.06,224.02,5.15378411]
[1759394182465,133.56,224.06,224.02,5.15378411]
[1759394182766,132.9,224.06,224.03,0.69]
[1759394182943,132.9,224.06,224.04,31.08]
[1759394183966,132.9,224.06,224.04,31.77]
[1759394184344,132.9,224.06,224.04,36.23345262]
[1759394186766,132.9,224.06,224.04,35.54345262]
[1759394188246,3.33436331,224.05,224.04,35.54345262]
[1759394189273,3.33441943,224.05,224.04,35.54345262]
[1759394192973,4.05441943,224.05,224.04,31.06]
[1759394195952,10.87647521,224.04,223.99,20.8]
[1759394196155,4.05441943,224.03,224.0,31.06]
[1759394196478,3.33441943,224.02,224.0,31.06]
[1759394196681,3.33441943,224.01,224.0,31.06]
[1759394196868,3.33441943,224.01,224.0,31.75]
[1759394198176,3.33441943,224.01,224.0,31.06]
[1759394198375,3.33441943,224.01,224.0,31.08]
[1759394198576,3.33441943,224.01,224.0,31.77]
[1759394203785,3.33441943,224.01,224.0,31.08]
[1759394206888,3.33441943,224.01,224.0,31.77]
[1759394207291,3.33441943,224.01,224.0,31.08]
[1759394209492,3.33441943,224.01,224.0,35.54428571]
[1759394210770,3.33441943,224.01,224.0,36.23428571]
[1759394211386,3.33441943,224.01,224.0,35.54428571]
[1759394214087,3.33441943,224.01,223.99,4.46448502]
[1759394214279,3.34303041,224.0,223.99,5.12448502]
[1759394214473,3.34303041,224.0,223.99,36.18448502]
[1759394217369,3.34303041,224.0,223.99,36.16448502]
[1759394218181,3.34303041,224.0,223.99,35.50448502]
[1759394220689,3.34303041,224.0,223.99,31.04]
[1759394220891,3.34303041,224.0,223.95,25.26510656]
[1759394220892,4.01303041,224.0,223.95,25.26510656]
[1759394221091,4.01303041,223.99,223.96,31.04]
[1759394221268,0.67,223.99,223.96,31.04]
[1759394221576,0.67,223.99,223.96,31.7]
[1759394221762,10.87647521,224.04,223.96,31.04]
[1759394221965,3.34265688,224.03,223.97,0.66]
[1759394222164,3.34265688,224.02,223.98,31.04]
[1759394222365,3.34265688,224.01,223.98,31.7]
[1759394222597,3.34265688,224.0,223.99,4.46448502]
[1759394222768,3.34265688,224.0,223.99,35.50448502]
[1759394224588,3.34265688,224.0,223.97,4.46474894]
[1759394224791,4.01265688,223.99,223.96,4.46506757]
[1759394224991,4.01265688,223.98,223.97,51.84]
[1759394225285,4.01265688,223.98,223.97,31.04]
[1759394226208,10.87647521,223.97,223.91,9.32426177]
[1759394226371,4.01265688,223.96,223.92,31.06]
[1759394226569,3.34265688,223.95,223.92,31.06]
[1759394226777,0.67,223.95,223.92,35.5257392]
[1759394227070,0.67,223.97,223.93,0.66]
[1759394227270,3.34083625,223.96,223.94,31.72]
[1759394227496,11.54647521,224.0,223.94,31.06]
[1759394227796,4.009412,223.99,223.95,0.66]
[1759394227979,3.339412,223.98,223.96,31.06]
[1759394228182,3.339412,223.97,223.96,31.06]
[1759394228377,3.339412,223.97,223.96,31.72]
[1759394228589,0.67,224.01,223.96,31.72]
[1759394228773,3.33876418,224.0,223.97,5.12488368]
[1759394228977,3.33876418,223.99,223.98,31.08]
[1759394230867,3.33876418,223.99,223.98,35.54468434]
[1759394232087,3.33795046,223.99,223.98,35.54468434]
[1759394232778,3.33795046,223.99,223.98,36.20468434]
[1759394233092,3.33795046,223.99,223.98,35.54468434]
[1759394234591,0.67,224.02,223.98,35.54468434]
[1759394234790,3.33749493,224.01,223.98,35.54468434]
[1759394234985,3.33749493,224.0,223.98,35.54468434]
[1759394235184,0.67,224.02,223.98,35.54468434]
[1759394235401,4.00767327,224.01,223.98,35.54468434]
[1759394235601,3.33767327,224.0,223.98,35.54468434]
[1759394235912,0.67,224.01,223.98,35.54468434]
[1759394236101,3.33773214,224.0,223.98,35.54468434]
[1759394236276,3.33794114,223.99,223.98,35.54468434]
[1759394237203,3.33794114,223.99,223.98,36.20468434]
[1759394237506,10.87647521,224.02,223.98,36.20468434]
[1759394237706,3.33830587,224.01,223.98,36.20468434]
[1759394237884,3.33830587,224.0,223.98,36.20468434]
[1759394238084,0.67,224.02,223.98,36.20468434]
[1759394238383,3.33830721,224.01,223.98,36.20468434]
[1759394238583,3.33830721,224.0,223.98,36.20468434]
[1759394238801,0.67,224.02,223.98,36.20468434]
[1759394239011,3.33845348,224.01,223.98,36.20468434]
[1759394239300,133.57,224.03,223.98,36.20468434]
[1759394239508,4.00846733,224.02,223.98,36.20468434]
[1759394239690,3.33846733,224.01,223.98,35.54468434]
[1759394239890,133.57,224.03,223.98,36.20468434]
[1759394240087,4.00841852,224.02,223.98,36.20468434]
[1759394240289,4.00841852,224.01,223.98,35.54468434]
[1759394240485,3.33855337,224.0,223.98,35.54468434]
[1759394240686,0.67,224.01,223.98,35.54468434]
[1759394240987,3.33865165,224.0,223.98,35.54468434]
[1759394241301,0.67,224.01,223.98,35.54468434]
[1759394241503,3.33873946,224.0,223.98,35.54468434]
[1759394241809,133.57,224.03,223.98,36.20468434]
[1759394242010,4.00873946,224.02,223.98,36.20468434]
[1759394242208,4.00873946,224.01,223.98,36.20468434]
[1759394242387,3.33873946,224.0,223.98,36.20468434]
[1759394242685,0.67,224.01,223.98,36.20468434]
[1759394242881,12.37820641,223.99,223.94,13.40632331]
[1759394243076,10.87647521,223.97,223.88,10.08920796]
[1759394243280,10.87647521,223.95,223.91,36.09828]
[1759394243512,4.0088333,223.94,223.91,36.09828]
[1759394243809,10.87647521,223.95,223.91,36.09828]
[1759394243810,4.0388333,223.93,223.91,36.09828]
[1759394244107,4.0388333,223.92,223.91,36.09828]
[1759394244610,14.91530851,223.92,223.91,4.85828]
[1759394245108,19.38118918,223.92,223.91,4.85828]
[1759394245625,19.37744623,223.92,223.91,4.85828]
[1759394251500,3.33509035,223.92,223.91,4.85828]
[1759394251718,15.34136598,223.97,223.91,10.04427078]
[1759394251906,10.87647521,223.95,223.92,0.72]
[1759394252231,3.32483933,223.96,223.92,31.98]
[1759394252232,10.87647521,223.96,223.92,31.98]
[1759394253524,0.7,223.96,223.92,31.98]
[1759394253734,10.87647521,223.96,223.92,31.98]
[1759394254619,5.16438811,224.0,223.93,0.72]
[1759394255723,10.87647521,223.97,223.93,0.72]
[1759394256628,132.9,223.98,223.94,0.72]
[1759394257004,132.9,223.98,223.92,4.4658506]
[1759394257217,132.9,223.98,223.93,31.98]
[1759394257418,132.9,223.98,223.94,0.72]
[1759394258932,132.9,223.98,223.94,4.46545888]
[1759394259139,132.9,223.98,223.95,0.72]
[1759394259343,10.87647521,224.01,223.94,4.46545888]
[1759394259544,0.7,224.0,223.94,5.18545888]
[1759394261912,0.7,224.0,223.95,5.18518189]
[1759394262514,0.7,224.0,223.96,0.72]
[1759394262738,0.7,224.0,223.97,31.26]
[1759394265131,5.16436479,224.0,223.97,31.26]
[1759394265436,4.46436479,224.0,223.97,31.26]
[1759394265630,5.16436479,224.0,223.97,31.26]
[1759394265935,0.7,223.99,223.98,31.24]
[1759394266312,10.87647521,224.03,223.98,31.24]
[1759394266522,10.87647521,224.01,223.98,31.24]
[1759394266810,3.327809,224.0,223.98,31.24]
[1759394267008,11.57647521,224.01,223.98,31.24]
[1759394267228,3.3277939,224.0,223.98,31.24]
[1759394267437,11.57647521,224.01,223.98,31.24]
[1759394267631,3.32806325,224.0,223.98,31.24]
[1759394267834,16.04057668,224.01,223.98,31.24]
[1759394268136,3.32806392,224.0,223.98,31.24]
[1759394268329,16.04057668,224.01,223.98,31.24]
[1759394268528,3.32834242,224.0,223.98,31.24]
[1759394268733,16.04057668,224.01,223.98,31.24]
[1759394268924,3.32834309,224.0,223.98,31.24]
[1759394269118,16.04057668,224.01,223.98,31.24]
[1759394269320,3.32834242,224.0,223.99,31.24]
[1759394269522,14.20481763,224.0,223.99,31.24]
[1759394270225,10.87647521,224.02,223.99,31.96]
[1759394270420,3.32850513,224.01,223.99,31.96]
[1759394270737,132.9,224.04,224.0,0.72]
[1759394270937,3.32845799,224.03,224.0,0.72]
[1759394271111,3.32845799,224.02,224.0,0.72]
[1759394271315,132.9,224.04,224.0,0.72]
[1759394271511,3.32823781,224.03,224.0,5.18420178]
[1759394271756,3.32823781,224.02,224.0,5.18420178]
[1759394271956,132.9,224.04,224.0,5.18420178]
[1759394272237,3.32822021,224.03,224.0,5.18420178]
[1759394272443,3.32822021,224.02,224.0,5.18420178]
[1759394272625,132.9,224.04,224.0,5.18420178]
[1759394272830,3.3280329,224.03,224.0,5.18420178]
[1759394273143,3.3280329,224.02,224.0,5.18420178]
[1759394273343,132.9,224.04,224.0,5.18420178]
[1759394273642,3.32788227,224.03,224.0,0.72]
[1759394273827,3.32788227,224.02,224.0,0.72]
[1759394274028,133.6,224.04,224.0,0.72]
[1759394274220,3.32784615,224.03,224.0,0.72]
[1759394274423,3.32784615,224.02,224.0,0.72]
[1759394274624,133.6,224.04,224.0,5.18428029]
[1759394274842,3.32771673,224.03,224.0,5.18428029]
[1759394275030,3.32771673,224.02,224.0,5.18428029]
[1759394275232,133.6,224.04,224.0,5.18428029]
[1759394275426,3.32759248,224.03,224.0,0.72]
[1759394275629,3.32759248,224.02,224.0,0.72]
[1759394275931,133.6,224.04,224.0,5.18424533]
[1759394276134,3.32759382,224.03,224.0,5.18424533]
[1759394276334,3.32759382,224.02,224.0,5.18424533]
[1759394276533,133.6,224.04,224.0,5.18424533]
[1759394276840,4.00747124,224.03,223.99,31.24]
[1759394277046,4.00747124,224.02,224.0,31.22]
[1759394277270,0.68,224.02,224.0,31.22]
[1759394277618,10.87647521,224.03,224.0,31.22]
[1759394277819,3.32738902,224.02,224.0,31.22]
[1759394278034,11.55647521,224.03,224.0,31.22]
[1759394278234,3.32738835,224.02,224.0,35.68424677]
[1759394278433,0.68,224.03,224.0,35.68424677]
[1759394278637,3.32728828,224.02,224.0,35.68424677]
[1759394278944,0.68,224.03,224.0,35.68424677]
[1759394279146,3.32728895,224.02,224.0,35.68424677]
[1759394279445,133.58,224.04,224.0,31.22]
[1759394279650,4.00715303,224.03,224.0,31.22]
[1759394279946,0.68,224.03,224.0,31.22]
[1759394280142,132.9,224.04,224.0,31.22]
[1759394280333,133.58,224.04,224.0,31.9]
[1759394280534,133.58,224.04,224.0,36.36422754]
[1759394281452,132.9,224.04,224.0,36.36422754]
[1759394281640,133.58,224.04,224.0,36.36422754]
[1759394282338,132.9,224.04,224.0,35.68422754]
[1759394282538,0.68,224.03,224.0,35.68422754]
[1759394282927,0.68,224.03,224.01,31.2]
[1759394283128,132.9,224.04,224.01,31.2]
[1759394283346,133.58,224.04,224.01,31.2]
[1759394284448,11.55647521,224.03,224.01,31.2]
[1759394284777,4.00634819,224.02,223.99,31.2]
[1759394285056,0.68,224.01,223.99,31.2]
[1759394285239,10.87647521,224.03,223.99,31.2]
[1759394285443,4.00670393,224.02,223.99,31.2]
[1759394285634,0.68,224.01,223.99,31.2]
[1759394285958,0.68,224.0,223.99,31.2]
[1759394286656,16.02076092,224.0,223.99,31.2]
[1759394287231,16.02076092,224.0,223.95,25.94526413]
[1759394287232,16.02076092,224.0,223.98,31.2]
[1759394287440,0.68,223.99,223.98,31.2]
[1759394288950,0.68,223.99,223.95,21.48]
[1759394289154,0.68,223.99,223.96,31.2]
[1759394291943,10.87647521,224.0,223.96,31.88]
[1759394292246,3.32947707,223.99,223.96,31.88]
[1759394292556,132.9,224.04,223.99,20.8]
[1759394292750,11.9742878,224.09,224.0,52.72]
[1759394292931,14.20643232,224.08,224.01,31.92]
[1759394293254,3.32955599,224.07,224.02,0.68]
[1759394293461,10.87647521,224.08,224.02,0.68]
[1759394293659,3.33020436,224.07,224.02,0.68]
[1759394293866,11.9742878,224.09,224.02,0.68]
[1759394294160,3.33020503,224.08,224.03,4.46368789]
[1759394294344,3.33020503,224.07,224.04,31.92]
[1759394294545,3.33020503,224.06,224.04,31.92]
[1759394294750,11.2942878,224.09,224.05,0.68]
[1759394294951,143.77647521,224.11,224.05,0.68]
[1759394295140,3.33041959,224.1,224.05,0.68]
[1759394295335,143.77647521,224.11,224.05,0.68]
[1759394295661,3.33052155,224.1,224.05,0.68]
[1759394295849,0.68,224.13,224.05,0.68]